bitfinex/quotes_SOLUSD_20241117
["timestamp","ask_amount","ask_price","bid_price","bid_amount"]
[1731807422044,22.14968686,217.38,217.31,0.09367462]
[1731807422429,22.14968686,217.36,217.28,22.14968686]
[1731807422633,22.14968686,217.36,217.29,0.09367462]
[1731807423158,22.14968686,217.36,217.28,22.14968686]
[1731807423342,22.14968686,217.36,217.29,0.09367462]
[1731807423549,22.14968686,217.36,217.29,23.902374]
[1731807424017,22.14968686,217.36,217.28,22.14968686]
[1731807424214,4.9856779,217.4,217.19,0.1]
[1731807424215,22.14968686,217.3,217.22,22.14968686]
[1731807424452,22.14968686,217.28,217.2,22.14968686]
[1731807424645,22.14968686,217.28,217.21,0.09367462]
[1731807425742,22.14968686,217.28,217.22,0.12549]
[1731807425920,22.14968686,217.28,217.2,22.14968686]
[1731807426120,8.0116,217.31,217.18,22.14968686]
[1731807426121,22.14968686,217.26,217.18,22.14968686]
[1731807426421,22.14968686,217.26,217.17,0.09367462]
[1731807426836,22.14968686,217.24,217.14,22.14968686]
[1731807427146,22.14968686,217.18,217.1,22.14968686]
[1731807427337,22.14968686,217.18,217.11,0.09367462]
[1731807427642,22.14968686,217.2,217.11,0.09367462]
[1731807427814,22.14968686,217.2,217.05,6.0133902]
[1731807427815,22.14968686,217.2,217.12,22.14968686]
[1731807428015,22.14968686,217.2,217.1,22.14968686]
[1731807428652,22.14968686,217.18,217.1,22.14968686]
[1731807428821,8.2278,217.19,217.12,22.14968686]
[1731807429531,8.2278,217.19,217.14,22.14968686]
[1731807430034,8.2278,217.19,217.12,22.14968686]
[1731807430645,8.2278,217.19,217.13,23.902374]
[1731807431028,22.14968686,217.18,217.11,0.12549]
[1731807431233,22.14968686,217.18,217.11,23.902374]
[1731807431529,8.2278,217.19,217.13,0.12549]
[1731807431735,8.2278,217.19,217.12,22.14968686]
[1731807431934,22.14968686,217.18,217.1,22.14968686]
[1731807432655,22.14968686,217.18,217.08,22.14968686]
[1731807432834,22.14968686,217.13,217.05,22.14968686]
[1731807433035,22.14968686,217.15,217.07,22.14968686]
[1731807433344,30.37748686,217.19,217.09,22.14968686]
[1731807433549,22.14968686,217.15,217.07,22.14968686]
[1731807433956,22.14968686,217.17,217.09,22.14968686]
[1731807434120,22.14968686,217.17,217.1,0.12549]
[1731807435161,8.2278,217.19,217.14,0.12549]
[1731807435328,8.2278,217.19,217.16,0.12549]
[1731807435532,20.0579,217.22,217.17,22.14968686]
[1731807437263,8.2278,217.24,217.18,23.902374]
[1731807437637,8.2278,217.24,217.2,23.902374]
[1731807437835,20.0579,217.28,217.21,22.14968686]
[1731807438353,20.0579,217.28,217.22,24.027864]
[1731807438535,8.2278,217.3,217.23,22.14968686]
[1731807438854,20.0579,217.34,217.26,23.902374]
[1731807438855,22.14968686,217.33,217.26,23.902374]
[1731807439065,22.14968686,217.29,217.21,22.14968686]
[1731807439233,22.14968686,217.23,217.12,0.12549]
[1731807439558,22.14968686,217.23,217.16,0.12549]
[1731807440335,22.14968686,217.21,217.13,22.14968686]
[1731807440654,0.1,217.29,217.09,20.6106]
[1731807440655,22.14968686,217.26,217.19,22.14968686]
[1731807440855,22.14968686,217.3,217.22,22.14968686]
[1731807441434,22.14968686,217.32,217.24,22.14968686]
[1731807441636,22.14968686,217.32,217.25,24.027864]
[1731807441846,8.2278,217.34,217.28,22.24336148]
[1731807442062,22.14968686,217.36,217.29,24.027864]
[1731807442368,8.6135779,217.4,217.31,23.902374]
[1731807442369,22.14968686,217.38,217.31,23.902374]
[1731807442869,8.6135779,217.4,217.31,0.12549]
[1731807442870,22.14968686,217.36,217.31,0.12549]
[1731807443152,22.14968686,217.36,217.3,0.12549]
[1731807443557,22.53546476,217.4,217.33,24.027864]
[1731807443947,22.14968686,217.38,217.33,0.12549]
[1731807444156,22.14968686,217.34,217.24,22.14968686]
[1731807444455,22.14968686,217.29,217.21,22.14968686]
[1731807444659,4.6002,217.38,217.23,22.14968686]
[1731807444952,22.14968686,217.32,217.23,22.14968686]
[1731807446139,22.14968686,217.32,217.24,0.09367462]
[1731807446356,22.14968686,217.34,217.27,22.14968686]
[1731807446566,22.14968686,217.34,217.28,24.027864]
[1731807446854,22.14968686,217.34,217.27,0.12549]
[1731807447357,22.14968686,217.32,217.27,0.12549]
[1731807447561,22.14968686,217.34,217.28,23.776884]
[1731807447860,22.14968686,217.34,217.29,0.12549]
[1731807448363,22.14968686,217.34,217.26,23.902374]
[1731807448741,22.14968686,217.32,217.23,22.14968686]
[1731807449550,22.14968686,217.3,217.21,22.14968686]
[1731807449756,4.6005,217.37,217.16,20.6106]
[1731807449757,22.14968686,217.28,217.19,22.14968686]
[1731807450372,22.14968686,217.26,217.17,22.14968686]
[1731807451071,22.14968686,217.22,217.13,22.14968686]
[1731807452241,22.14968686,217.22,217.14,24.027864]
[1731807452440,22.14968686,217.22,217.14,0.12549]
[1731807452770,22.14968686,217.22,217.13,22.14968686]
[1731807453265,22.14968686,217.2,217.11,22.14968686]
[1731807453453,22.14968686,217.18,217.09,22.14968686]
[1731807454663,22.14968686,217.18,217.1,24.027864]
[1731807454963,22.14968686,217.22,217.15,22.14968686]
[1731807455152,22.14968686,217.26,217.18,0.12549]
[1731807455358,22.14968686,217.28,217.2,0.12549]
[1731807455669,22.14968686,217.28,217.21,22.14968686]
[1731807455858,22.14968686,217.28,217.22,0.12549]
[1731807456451,22.14968686,217.28,217.21,0.12549]
[1731807457468,22.14968686,217.26,217.18,24.027864]
[1731807458166,22.14968686,217.28,217.2,24.027864]
[1731807459173,22.14968686,217.24,217.18,23.902374]
[1731807459743,22.14968686,217.22,217.13,22.14968686]
[1731807460175,22.14968686,217.2,217.13,22.14968686]
[1731807460747,22.14968686,217.24,217.15,22.14968686]
[1731807461770,22.14968686,217.24,217.16,24.027864]
[1731807462368,22.14968686,217.26,217.18,0.12549]
[1731807462566,22.14968686,217.29,217.22,0.12549]
[1731807463067,22.14968686,217.25,217.17,22.14968686]
[1731807463267,22.14968686,217.25,217.18,0.25098]
[1731807463471,22.14968686,217.29,217.22,0.12549]
[1731807464260,22.14968686,217.29,217.21,0.12549]
[1731807466048,22.14968686,217.29,217.21,22.27517686]
[1731807466248,22.14968686,217.29,217.2,23.902374]
[1731807466249,0.09367462,217.31,217.25,22.14968686]
[1731807466461,0.09367462,217.31,217.26,23.902374]
[1731807467072,22.14968686,217.27,217.11,20.7435]
[1731807467255,22.14968686,217.21,217.11,42.89318686]
[1731807467668,22.14968686,217.21,217.12,0.09367462]
[1731807467874,22.14968686,217.21,217.13,22.14968686]
[1731807468354,22.14968686,217.21,217.14,24.027864]
[1731807468878,22.14968686,217.23,217.14,24.027864]
[1731807469244,22.14968686,217.23,217.16,24.027864]
[1731807471074,22.14968686,217.27,217.18,0.25098]
[1731807471383,22.14968686,217.27,217.2,24.027864]
[1731807472463,22.14968686,217.27,217.2,0.12549]
[1731807473866,22.14968686,217.23,217.16,24.027864]
[1731807475091,22.14968686,217.21,217.14,23.902374]
[1731807475273,4.6023,217.28,217.15,22.27517686]
[1731807475584,22.14968686,217.24,217.16,23.902374]
[1731807477762,4.6027,217.27,217.09,22.14968686]
[1731807477763,22.14968686,217.19,217.09,22.14968686]
[1731807477968,22.14968686,217.17,217.09,22.14968686]
[1731807479683,22.14968686,217.17,217.1,24.027864]
[1731807480099,22.14968686,217.17,217.07,22.14968686]
[1731807480386,20.0,217.2,217.07,22.14968686]
[1731807480387,22.14968686,217.15,217.07,22.14968686]
[1731807480581,4.6045,217.18,217.04,8.3735]
[1731807480582,22.14968686,217.13,217.05,22.14968686]
[1731807482296,22.14968686,217.11,217.03,22.14968686]
[1731807482970,22.14968686,217.11,217.0,8.3735]
[1731807482971,22.14968686,217.09,217.01,22.14968686]
[1731807483287,22.14968686,217.07,216.99,22.14968686]
[1731807483495,0.1,217.14,216.97,19.8063]
[1731807483496,22.14968686,217.09,217.01,22.14968686]
[1731807484875,0.2,217.16,217.07,22.14968686]
[1731807484876,22.14968686,217.16,217.07,22.14968686]
[1731807485087,22.14968686,217.18,217.09,22.14968686]
[1731807485596,22.14968686,217.16,217.08,23.902374]
[1731807485962,22.14968686,217.16,217.08,0.12549]
[1731807486167,22.14968686,217.14,217.07,22.14968686]
[1731807486387,22.14968686,217.14,217.05,22.14968686]
[1731807486792,22.14968686,217.12,217.03,22.14968686]
[1731807486967,22.14968686,217.1,217.03,22.14968686]
[1731807487169,22.14968686,217.1,217.02,23.776884]
[1731807487374,22.14968686,217.05,216.95,12.92279831]
[1731807487704,22.14968686,217.05,216.96,22.14968686]
[1731807488369,22.14968686,217.03,216.94,22.14968686]
[1731807488601,22.14968686,217.01,216.92,22.14968686]
[1731807488781,22.14968686,217.03,216.94,22.14968686]
[1731807488981,22.14968686,217.05,216.96,22.14968686]
[1731807489186,4.70047462,217.07,217.0,22.14968686]
[1731807489187,22.24336148,217.07,217.0,22.14968686]
[1731807489899,22.24336148,217.07,216.93,0.09367462]
[1731807489900,22.24336148,217.07,216.98,22.14968686]
[1731807490066,0.09367462,217.07,217.02,22.14968686]
[1731807490803,22.24336148,217.07,216.98,22.14968686]
[1731807491170,22.24336148,217.07,217.0,22.14968686]
[1731807492075,22.24336148,217.07,216.98,22.14968686]
[1731807492808,22.14968686,217.05,216.97,0.12549]
[1731807493092,22.14968686,217.05,216.96,22.14968686]
[1731807494591,4.6071,217.06,216.98,22.14968686]
[1731807494895,26.75678686,217.06,216.98,22.14968686]
[1731807495396,0.09367462,217.07,217.0,22.14968686]
[1731807495721,0.09367462,217.07,217.04,22.14968686]
[1731807495902,0.09367462,217.07,217.02,22.14968686]
[1731807496277,0.09367462,217.07,217.04,22.14968686]
[1731807496492,0.09367462,217.07,217.06,22.14968686]
[1731807497411,0.09367462,217.07,217.06,46.05206086]
[1731807498992,0.09367462,217.07,217.06,66.27122548]
[1731807500100,20.2776,217.22,217.07,44.22153862]
[1731807500300,22.14968686,217.28,217.19,22.14968686]
[1731807500477,8.4311,217.28,217.23,22.14968686]
[1731807500681,8.4311,217.28,217.21,22.14968686]
[1731807501172,30.58078686,217.28,217.19,22.14968686]
[1731807501390,22.14968686,217.2,217.13,22.14968686]
[1731807502173,22.14968686,217.22,217.13,22.14968686]
[1731807502374,22.14968686,217.24,217.15,22.14968686]
[1731807502800,22.14968686,217.18,217.09,22.14968686]
[1731807502988,22.14968686,217.14,217.05,22.14968686]
[1731807503496,22.14968686,217.12,217.05,22.14968686]
[1731807504998,22.14968686,217.12,217.06,23.902374]
[1731807505305,50.85838686,217.16,217.07,22.14968686]
[1731807505610,50.85838686,217.16,217.08,0.12549]
[1731807505796,28.7087,217.16,217.1,0.25098]
[1731807506105,8.4311,217.21,217.13,22.14968686]
[1731807506305,8.4311,217.21,217.14,0.12549]
[1731807507680,22.14968686,217.22,217.16,0.12549]
[1731807507892,20.2776,217.23,217.15,22.14968686]
[1731807508094,20.2776,217.23,217.09,0.09367462]
[1731807508095,22.14968686,217.16,217.06,22.14968686]
[1731807508396,22.14968686,217.12,217.04,22.14968686]
[1731807508897,22.14968686,217.14,217.06,22.14968686]
[1731807509504,22.14968686,217.12,217.02,22.14968686]
[1731807509806,22.14968686,217.1,217.02,22.14968686]
[1731807510181,8.3398,217.21,217.08,22.14968686]
[1731807510418,22.14968686,217.18,217.08,22.14968686]
[1731807510908,22.14968686,217.18,217.09,23.902374]
[1731807511094,22.14968686,217.14,217.06,22.14968686]
[1731807511286,22.14968686,217.12,217.02,22.14968686]
[1731807511599,22.14968686,217.1,217.02,22.14968686]
[1731807513002,22.14968686,217.1,217.02,0.12549]
[1731807514087,22.14968686,217.1,217.02,22.27517686]
[1731807514718,22.14968686,217.1,217.03,23.776884]
[1731807516385,22.14968686,217.12,217.03,23.776884]
[1731807517788,22.14968686,217.12,217.04,22.27517686]
[1731807517990,22.14968686,217.18,217.11,23.776884]
[1731807518193,8.3398,217.21,217.14,22.14968686]
[1731807518910,0.1,217.27,217.08,22.14968686]
[1731807518911,22.14968686,217.26,217.18,22.14968686]
[1731807519505,8.3398,217.27,217.18,22.14968686]
[1731807519807,8.3398,217.27,217.22,22.14968686]
[1731807519992,19.9333,217.29,217.22,22.14968686]
[1731807520189,22.14968686,217.3,217.22,22.14968686]
[1731807520397,0.09367462,217.31,217.24,22.14968686]
[1731807520904,0.09367462,217.31,217.22,22.14968686]
[1731807524397,22.14968686,217.28,217.15,23.776884]
[1731807524595,22.14968686,217.21,217.13,22.14968686]
[1731807524909,22.14968686,217.19,217.11,22.14968686]
[1731807526601,22.14968686,217.21,217.13,22.14968686]
[1731807527610,22.14968686,217.19,217.12,23.776884]
[1731807527792,22.14968686,217.19,217.1,0.12549]
[1731807527992,8.4469,217.2,217.12,0.12549]
[1731807528414,8.4469,217.2,217.06,0.1]
[1731807528415,42.63998686,217.23,217.15,22.14968686]
[1731807528715,22.14968686,217.23,217.15,22.14968686]
[1731807529219,30.59658686,217.25,217.18,23.902374]
[1731807530100,20.4903,217.28,217.21,22.14968686]
[1731807530415,22.14968686,217.29,217.21,22.14968686]
[1731807531107,22.14968686,217.27,217.2,23.776884]
[1731807531622,22.14968686,217.27,217.18,23.902374]
[1731807531821,22.14968686,217.21,217.13,22.14968686]
[1731807532007,22.14968686,217.19,217.11,22.14968686]
[1731807532414,22.14968686,217.19,217.12,0.09367462]
[1731807532740,22.14968686,217.21,217.13,22.14968686]
[1731807533309,22.14968686,217.21,217.14,0.12549]
[1731807534033,22.14968686,217.21,217.14,23.902374]
[1731807534235,22.14968686,217.21,217.12,0.12549]
[1731807534530,22.14968686,217.21,217.13,22.14968686]
[1731807534735,22.14968686,217.21,217.14,0.12549]
[1731807535409,22.14968686,217.21,217.14,23.902374]
[1731807536122,22.14968686,217.23,217.14,23.902374]
[1731807536828,22.14968686,217.21,217.13,22.14968686]
[1731807537246,22.14968686,217.23,217.13,22.14968686]
[1731807537410,22.14968686,217.25,217.15,22.14968686]
[1731807537908,22.14968686,217.25,217.16,23.776884]
[1731807538104,22.14968686,217.25,217.17,0.12549]
[1731807538735,26.75268686,217.25,217.17,0.12549]
[1731807538911,26.75268686,217.25,217.18,23.776884]
[1731807539426,22.14968686,217.29,217.21,22.14968686]
[1731807539828,22.14968686,217.29,217.22,23.902374]
[1731807541139,22.24336148,217.31,217.22,23.902374]
[1731807541319,0.09367462,217.31,217.25,22.14968686]
[1731807541932,0.09367462,217.31,217.22,23.902374]
[1731807541933,4.6019,217.3,217.23,22.14968686]
[1731807542236,4.6019,217.3,217.17,29.3359]
[1731807542237,22.14968686,217.26,217.19,22.14968686]
[1731807543041,4.6019,217.3,217.23,22.14968686]
[1731807543042,22.14968686,217.3,217.23,22.14968686]
[1731807543346,0.09367462,217.31,217.26,23.776884]
[1731807544817,4.69537462,217.31,217.25,0.12549]
[1731807545543,0.09367462,217.31,217.25,0.12549]
[1731807547040,22.14968686,217.27,217.19,22.14968686]
[1731807547732,22.14968686,217.27,217.11,0.1]
[1731807547733,22.14968686,217.23,217.15,22.14968686]
[1731807549248,26.75308686,217.23,217.15,22.14968686]
[1731807549543,22.14968686,217.25,217.17,22.14968686]
[1731807549721,26.75268686,217.25,217.17,22.14968686]
[1731807550123,26.75268686,217.25,217.18,23.776884]
[1731807551037,26.75268686,217.25,217.17,0.12549]
[1731807551349,22.14968686,217.25,217.18,0.21916462]
[1731807551642,0.09367462,217.31,217.23,22.14968686]
[1731807551856,0.09367462,217.31,217.26,23.776884]
[1731807552047,0.09367462,217.31,217.23,22.14968686]
[1731807552824,0.09367462,217.31,217.17,22.27517686]
[1731807552825,22.14968686,217.26,217.17,22.27517686]
[1731807553032,22.14968686,217.23,217.17,0.12549]
[1731807553257,22.14968686,217.27,217.19,22.14968686]
[1731807553450,4.6027,217.26,217.19,22.14968686]
[1731807553937,22.14968686,217.27,217.19,22.14968686]
[1731807553938,26.75228686,217.27,217.19,22.14968686]
[1731807556745,22.14968686,217.21,217.11,20.142]
[1731807556962,22.14968686,217.21,217.04,0.1]
[1731807556963,22.14968686,217.17,217.1,22.14968686]
[1731807558232,22.14968686,217.19,217.11,23.902374]
[1731807558458,22.14968686,217.17,217.1,22.14968686]
[1731807558644,26.75448686,217.17,217.1,22.14968686]
[1731807559749,26.75448686,217.17,217.06,19.727]
[1731807559750,22.14968686,217.15,217.06,22.14968686]
[1731807559947,22.14968686,217.13,217.04,22.14968686]
[1731807560126,22.14968686,217.11,217.01,22.14968686]
[1731807560331,22.14968686,217.09,217.01,22.14968686]
[1731807560526,22.14968686,217.11,217.03,22.14968686]
[1731807561740,22.14968686,217.11,217.01,22.14968686]
[1731807561938,22.14968686,217.09,217.01,22.14968686]
[1731807562850,22.14968686,217.09,216.95,19.727]
[1731807562851,4.6061,217.1,217.03,22.14968686]
[1731807563024,22.14968686,217.11,217.03,22.14968686]
[1731807563222,26.75568686,217.11,217.03,22.14968686]
[1731807563633,26.75568686,217.11,216.96,22.14968686]
[1731807563931,26.75568686,217.11,216.94,8.1045]
[1731807563932,22.14968686,217.07,216.99,22.14968686]
[1731807564151,22.14968686,217.05,216.97,22.14968686]
[1731807565728,26.75698686,217.05,216.97,22.14968686]
[1731807565956,22.14968686,217.07,217.0,23.776884]
[1731807566262,12.9748,217.08,216.99,22.14968686]
[1731807568152,22.14968686,217.07,216.99,22.14968686]
[1731807568652,22.14968686,217.01,216.9,20.1]
[1731807568842,22.14968686,217.01,216.93,22.14968686]
[1731807569358,4.6078,217.02,216.95,22.14968686]
[1731807570553,12.9747,217.08,217.01,22.14968686]
[1731807571063,8.3681,217.08,217.01,22.14968686]
[1731807571238,8.3681,217.08,217.03,22.14968686]
[1731807571435,22.14968686,217.04,216.96,22.14968686]
[1731807572551,26.75708686,217.04,216.96,22.14968686]
[1731807572861,26.75708686,217.04,216.86,20.1254]
[1731807572862,22.14968686,217.01,216.86,20.1254]
[1731807573081,22.14968686,216.99,216.9,22.14968686]
[1731807573239,22.14968686,217.01,216.94,22.14968686]
[1731807573439,4.6074,217.04,216.96,22.14968686]
[1731807574152,22.27517686,217.03,216.96,22.14968686]
[1731807574458,22.27517686,217.03,216.94,22.14968686]
[1731807574964,4.6078,217.02,216.96,22.14968686]
[1731807575138,22.14968686,217.03,216.96,22.14968686]
[1731807575452,26.75648686,217.07,216.98,22.14968686]
[1731807576154,26.75648686,217.07,217.0,22.14968686]
[1731807576852,26.75648686,217.07,216.98,22.14968686]
[1731807577764,26.75648686,217.07,217.0,22.14968686]
[1731807578959,4.6068,217.07,217.0,13.8900806]
[1731807581761,4.6068,217.07,216.91,0.34465462]
[1731807581762,13.8900806,217.06,216.98,13.8900806]
[1731807582733,18.4971806,217.06,216.98,13.8900806]
[1731807583140,18.4971806,217.06,216.96,13.8900806]
[1731807583141,13.8900806,217.04,216.96,13.8900806]
[1731807584333,18.4974806,217.04,216.96,13.8900806]
[1731807585348,18.4971806,217.06,216.98,13.8900806]
[1731807586955,8.3681,217.08,217.02,13.8900806]
[1731807589154,8.3681,217.08,217.04,13.8900806]
[1731807589561,8.3681,217.08,216.93,0.1]
[1731807589562,12.9747,217.08,217.02,13.8900806]
[1731807590552,13.8900806,217.04,216.89,5.41322353]
[1731807590749,13.8900806,217.04,216.9,0.1]
[1731807590964,13.8900806,217.04,216.96,13.8900806]
[1731807591355,18.4970806,217.06,216.98,13.8900806]
[1731807592073,8.3681,217.08,217.04,13.8900806]
[1731807592257,8.3681,217.08,217.06,13.8900806]
[1731807592646,8.3681,217.08,217.04,13.8900806]
[1731807594869,12.9747,217.08,217.02,13.8900806]
[1731807595248,12.9747,217.08,217.0,13.8900806]
[1731807596771,13.8900806,217.03,216.95,13.8900806]
[1731807597971,13.8900806,216.97,216.86,0.1254]
[1731807598145,13.8900806,216.94,216.86,14.0154806]
[1731807598557,13.8900806,216.92,216.86,14.0154806]
[1731807598775,13.8900806,216.92,216.86,0.1254]
[1731807599354,20.0,216.87,216.86,0.1254]
[1731807599556,20.09367462,216.87,216.86,0.1254]
[1731807599770,0.21916462,216.85,216.66,29.0197]
[1731807599965,0.21916462,216.85,216.64,0.5111779]
[1731807599966,13.8900806,216.8,216.72,13.8900806]
[1731807600153,8.6289,216.83,216.74,13.8900806]
[1731807600154,13.8900806,216.82,216.74,13.8900806]
[1731807600478,13.8900806,216.8,216.72,13.8900806]
[1731807600687,13.8900806,216.78,216.7,13.8900806]
[1731807600864,22.28706593,216.77,216.69,22.28706593]
[1731807601762,26.90036593,216.77,216.69,22.28706593]
[1731807602779,4.6133,216.77,216.71,22.28706593]
[1731807602989,21.378,216.79,216.75,22.28706593]
[1731807604161,21.378,216.79,216.67,23.902374]
[1731807604362,21.378,216.79,216.73,22.28706593]
[1731807605178,21.378,216.79,216.67,23.902374]
[1731807605396,22.28706593,216.75,216.64,0.5111779]
[1731807605567,22.28706593,216.73,216.65,22.28706593]
[1731807606377,22.28706593,216.66,216.64,0.5111779]
[1731807606584,42.38106593,216.66,216.64,0.5111779]
[1731807607195,4.6161,216.63,216.46,22.28706593]
[1731807607361,22.28706593,216.55,216.46,22.28706593]
[1731807607566,22.28706593,216.53,216.44,22.28706593]
[1731807608177,22.28706593,216.51,216.35,8.2063]
[1731807608485,20.0,216.58,216.26,23.75698933]
[1731807608486,22.28706593,216.47,216.39,22.28706593]
[1731807609501,22.28706593,216.47,216.32,7.15516107]
[1731807609787,22.28706593,216.47,216.38,22.28706593]
[1731807610670,22.28706593,216.49,216.4,22.28706593]
[1731807610976,22.28706593,216.51,216.42,22.28706593]
[1731807611992,22.28706593,216.53,216.44,22.28706593]
[1731807612292,22.28706593,216.51,216.43,0.5111779]
[1731807612488,4.618,216.55,216.43,0.5111779]
[1731807612489,22.28706593,216.49,216.43,0.5111779]
[1731807612675,22.28706593,216.47,216.43,0.5111779]
[1731807612877,22.28706593,216.51,216.43,22.79824383]
[1731807613888,22.28706593,216.53,216.45,22.28706593]
[1731807614065,22.28706593,216.58,216.51,22.28706593]
[1731807614270,22.28706593,216.61,216.53,22.28706593]
[1731807614486,4.6157,216.65,216.51,22.28706593]
[1731807614487,22.28706593,216.59,216.51,22.28706593]
[1731807615373,22.28706593,216.57,216.49,22.28706593]
[1731807615896,16.155,216.65,216.43,0.5111779]
[1731807615897,22.28706593,216.51,216.43,22.79824383]
[1731807616890,22.28706593,216.53,216.45,22.28706593]
[1731807617272,4.6185,216.52,216.45,22.28706593]
[1731807618481,22.28706593,216.55,216.47,22.28706593]
[1731807618891,22.28706593,216.51,216.43,0.5111779]
[1731807619194,0.09367462,216.59,216.43,0.5111779]
[1731807619195,22.28706593,216.53,216.45,23.776884]
[1731807619503,22.28706593,216.53,216.43,0.5111779]
[1731807619504,22.28706593,216.53,216.46,22.28706593]
[1731807620286,4.6185,216.52,216.46,22.28706593]
[1731807620488,4.6185,216.52,216.43,0.5111779]
[1731807620794,30.24706593,216.49,216.43,0.5111779]
[1731807620984,22.28706593,216.44,216.43,0.5111779]
[1731807622273,26.90726593,216.44,216.43,0.5111779]
[1731807622478,7.96,216.49,216.43,0.5111779]
[1731807622479,22.28706593,216.46,216.43,0.5111779]
[1731807622674,26.90636593,216.48,216.43,0.5111779]
[1731807622879,4.6193,216.48,216.43,0.5111779]
[1731807623680,22.28706593,216.44,216.43,0.5111779]
[1731807623888,0.09367462,216.45,216.43,0.5111779]
[1731807624081,42.28706593,216.44,216.43,0.5111779]
[1731807624382,46.90726593,216.44,216.43,0.5111779]
[1731807624776,47.03275593,216.44,216.43,0.5111779]
[1731807625106,26.90726593,216.44,216.43,0.5111779]
[1731807626297,47.12643055,216.44,216.43,0.5111779]
[1731807627407,47.12643055,216.44,216.32,7.15516107]
[1731807627408,0.12549,216.42,216.32,7.15516107]
[1731807627577,22.28706593,216.35,216.32,7.15516107]
[1731807627777,22.28706593,216.37,216.32,7.15516107]
[1731807628676,26.90846593,216.39,216.32,7.15516107]
[1731807629773,26.90846593,216.39,216.33,23.776884]
[1731807630376,22.28706593,216.47,216.38,23.776884]
[1731807630582,4.6197,216.46,216.39,22.28706593]
[1731807630877,4.6194,216.48,216.41,22.28706593]
[1731807631306,22.28706593,216.45,216.38,23.776884]
[1731807632179,22.28706593,216.43,216.36,23.776884]
[1731807632407,22.28706593,216.41,216.34,23.776884]
[1731807632696,0.19367462,216.47,216.32,7.15516107]
[1731807632697,22.28706593,216.37,216.32,7.15516107]
[1731807633275,22.28706593,216.37,216.29,22.28706593]
[1731807634109,22.28706593,216.37,216.3,23.776884]
[1731807634679,26.90876593,216.37,216.3,23.776884]
[1731807638007,4.6217,216.37,216.31,22.28706593]
[1731807638502,4.6217,216.37,216.32,23.776884]
[1731807639575,22.28706593,216.44,216.36,22.28706593]
[1731807639799,22.28706593,216.46,216.38,22.28706593]
[1731807639990,26.90696593,216.46,216.38,22.28706593]
[1731807640688,7.96,216.49,216.42,22.28706593]
[1731807640894,26.90606593,216.5,216.42,22.28706593]
[1731807641400,4.6188,216.51,216.44,22.28706593]
[1731807641710,4.6188,216.51,216.45,23.776884]
[1731807642403,8.3532,216.55,216.48,22.28706593]
[1731807642602,4.6175,216.57,216.51,23.776884]
[1731807642808,22.28706593,216.54,216.51,23.776884]
[1731807643012,22.28706593,216.52,216.51,23.776884]
[1731807643311,22.28706593,216.52,216.36,5.37972961]
[1731807643312,22.28706593,216.52,216.38,22.28706593]
[1731807643506,22.28706593,216.46,216.38,22.28706593]
[1731807644011,22.28706593,216.42,216.33,22.28706593]
[1731807644197,22.28706593,216.44,216.35,22.28706593]
[1731807644907,22.28706593,216.37,216.27,20.6601]
[1731807645090,22.28706593,216.37,216.29,22.28706593]
[1731807645293,22.28706593,216.34,216.24,8.2388]
[1731807645486,22.28706593,216.34,216.22,20.6601]
[1731807645487,22.28706593,216.34,216.25,22.28706593]
[1731807645887,26.90936593,216.34,216.27,22.28706593]
[1731807646092,26.90906593,216.36,216.29,22.28706593]
[1731807646293,22.28706593,216.3,216.21,0.5111779]
[1731807646508,22.28706593,216.3,216.21,22.79824383]
[1731807647507,38.46386593,216.36,216.24,23.776884]
[1731807647508,22.28706593,216.32,216.24,23.776884]
[1731807647817,22.28706593,216.32,216.26,23.776884]
[1731807648106,19.9244,216.37,216.26,23.776884]
[1731807648107,4.6225,216.33,216.26,23.776884]
[1731807648615,19.9244,216.37,216.26,23.776884]
[1731807648616,4.6222,216.35,216.28,23.776884]
[1731807648925,4.6222,216.35,216.29,23.776884]
[1731807649212,22.28706593,216.36,216.29,23.776884]
[1731807649408,26.90906593,216.36,216.29,23.776884]
[1731807650321,4.622,216.36,216.29,23.776884]
[1731807650633,4.622,216.36,216.3,22.28706593]
[1731807650815,4.622,216.36,216.31,23.776884]
[1731807651639,4.622,216.36,216.29,23.776884]
[1731807652225,4.622,216.36,216.3,0.12549]
[1731807652795,22.28706593,216.38,216.3,22.41255593]
[1731807653031,26.90866593,216.38,216.31,23.776884]
[1731807653194,4.6209,216.41,216.34,0.12549]
[1731807653621,4.6209,216.41,216.34,22.41255593]
[1731807653916,12.7501,216.43,216.36,0.12549]
[1731807654093,4.6204,216.43,216.36,0.12549]
[1731807654295,4.6196,216.47,216.38,0.12549]
[1731807654521,22.28706593,216.48,216.4,23.902374]
[1731807654700,12.7489,216.49,216.42,23.776884]
[1731807655195,4.6192,216.49,216.42,23.776884]